bitfinex/quotes_SOLUSD_20240705
["timestamp","ask_amount","ask_price","bid_price","bid_amount"]
[1720197018708,7.3593,135.89,135.77,15.05]
[1720197018905,0.17,135.88,135.77,15.05]
[1720197019107,7.36,135.87,135.77,15.05]
[1720197019309,7.3612,135.85,135.77,15.05]
[1720197019528,0.17,135.84,135.77,15.05]
[1720197020227,7.3616,135.84,135.77,15.05]
[1720197020397,0.17,135.83,135.77,15.05]
[1720197020741,0.17,135.85,135.77,15.05]
[1720197021030,7.3622,135.83,135.77,15.05]
[1720197021245,0.17,135.85,135.71,21.5091]
[1720197021246,7.3644,135.79,135.71,21.5091]
[1720197021398,0.17,135.78,135.71,21.5091]
[1720197021842,7.3657,135.77,135.71,21.5091]
[1720197022125,0.17,135.76,135.71,21.5091]
[1720197022307,7.536,135.76,135.71,21.5091]
[1720197022726,0.17,135.76,135.71,21.5091]
[1720197023129,0.17,135.76,135.64,22.3748]
[1720197023309,7.3671,135.74,135.64,22.3748]
[1720197023626,0.17,135.73,135.64,22.3748]
[1720197023827,7.3679,135.73,135.64,22.3748]
[1720197024033,7.5381,135.72,135.64,22.3748]
[1720197024327,0.17,135.72,135.64,22.3748]
[1720197025144,0.17,135.72,135.68,7.3698]
[1720197025635,0.17,135.73,135.69,7.3696]
[1720197026011,0.17,135.73,135.71,7.3686]
[1720197026209,0.17,135.74,135.68,7.3702]
[1720197026431,7.368,135.73,135.68,7.3702]
[1720197026720,7.3701,135.69,135.64,22.3748]
[1720197026945,0.17,135.72,135.64,22.3748]
[1720197028132,7.369,135.71,135.64,22.3748]
[1720197028328,7.5394,135.7,135.64,22.3748]
[1720197028531,0.17,135.7,135.64,22.3748]
[1720197029009,0.17,135.7,135.69,7.3697]
[1720197029213,7.3682,135.72,135.67,7.3705]
[1720197029435,0.17,135.71,135.64,22.3748]
[1720197030312,0.17,135.71,135.69,7.3693]
[1720197030512,0.17,135.71,135.7,7.3691]
[1720197031540,7.3706,135.68,135.64,22.3748]
[1720197031724,0.17,135.67,135.61,0.1]
[1720197031917,18.4196,135.73,135.61,0.1]
[1720197032225,20.0,135.72,135.66,7.3708]
[1720197032431,0.17,135.71,135.66,7.3708]
[1720197032626,0.17,135.71,135.61,0.1]
[1720197033039,7.3707,135.68,135.63,7.3728]
[1720197033342,0.17,135.67,135.64,7.3723]
[1720197034019,0.17,135.68,135.64,7.3723]
[1720197034219,0.17,135.68,135.65,7.3715]
[1720197034526,7.3708,135.67,135.61,0.1]
[1720197034725,7.3708,135.67,135.62,7.3735]
[1720197034726,0.17,135.66,135.62,7.3735]
[1720197034945,7.5414,135.66,135.61,0.1]
[1720197035237,20.0,135.72,135.61,0.1]
[1720197035448,20.0,135.72,135.65,7.3716]
[1720197035618,7.3693,135.7,135.65,7.3716]
[1720197035820,7.3693,135.7,135.65,7.3717]
[1720197036022,7.37,135.69,135.61,0.1]
[1720197036265,20.0,135.72,135.61,0.1]
[1720197036427,38.4209,135.72,135.61,0.1]
[1720197036620,7.3703,135.68,135.64,7.3724]
[1720197036817,38.4209,135.72,135.61,0.1]
[1720197037017,38.4209,135.72,135.65,7.3718]
[1720197037217,6.1741,135.77,135.61,0.1]
[1720197037444,18.4152,135.76,135.61,0.1]
[1720197037740,5.23469232,135.77,135.71,7.3685]
[1720197037947,18.4116,135.79,135.61,0.1]
[1720197038126,7.3675,135.73,135.69,7.3692]
[1720197038442,4.98719881,135.79,135.61,0.1]
[1720197038641,18.4099,135.8,135.7,7.369]
[1720197038953,7.3684,135.72,135.67,7.3706]
[1720197039120,7.3684,135.72,135.61,0.1]
[1720197039750,7.3677,135.73,135.61,0.1]
[1720197040049,18.4178,135.74,135.61,0.1]
[1720197040259,7.3682,135.72,135.67,7.3706]
[1720197040554,7.3682,135.72,135.61,0.1]
[1720197040555,7.3709,135.67,135.61,0.1]
[1720197040724,7.3698,135.69,135.64,7.3719]
[1720197040928,7.5404,135.68,135.63,7.3728]
[1720197041136,18.5919,135.71,135.62,7.3734]
[1720197041449,7.3716,135.66,135.62,7.3734]
[1720197041627,0.17,135.65,135.62,7.3734]
[1720197041952,7.3725,135.64,135.61,0.1]
[1720197042121,0.17,135.63,135.61,0.1]
[1720197042322,7.5431,135.63,135.61,0.1]
[1720197042521,7.5431,135.63,135.57,0.8810062]
[1720197042522,0.17,135.63,135.57,0.8810062]
[1720197042728,7.3755,135.59,135.57,0.8810062]
[1720197043034,7.3772,135.56,135.51,7.4795]
[1720197043242,7.3758,135.58,135.51,0.1]
[1720197043542,7.378,135.54,135.51,0.1]
[1720197044140,18.442,135.56,135.51,0.1]
[1720197044334,7.3796,135.51,135.44,7.0940062]
[1720197044536,18.4463,135.53,135.44,0.8810062]
[1720197044759,7.3806,135.49,135.44,0.8810062]
[1720197044943,0.17,135.48,135.44,0.8810062]
[1720197045638,0.17,135.48,135.47,7.3817]
[1720197045860,7.3784,135.53,135.49,7.3806]
[1720197046049,25.03721496,135.55,135.44,0.8810062]
[1720197046360,0.17,135.54,135.44,0.8810062]
[1720197046553,7.3802,135.5,135.45,7.3827]
[1720197046730,136.8786,135.58,135.44,0.8810062]
[1720197046731,3.79184746,135.7,135.65,7.3714]
[1720197046931,30.0,135.66,135.65,7.3719]
[1720197047127,5.04745632,135.74,135.55,100.0]
[1720197047329,136.64,135.76,135.64,7.3723]
[1720197047566,100.0,135.74,135.52,136.64]
[1720197047863,36.64,135.72,135.64,7.3723]
[1720197048240,36.64,135.72,135.62,7.3731]
[1720197048434,18.4226,135.71,135.5,100.0]
[1720197048637,7.3716,135.66,135.62,7.3734]
[1720197048836,18.4226,135.71,135.63,7.3727]
[1720197049042,18.4226,135.71,135.62,7.3735]
[1720197049043,7.3708,135.67,135.62,7.3735]
[1720197049735,7.3716,135.66,135.51,20.0]
[1720197049939,18.4226,135.71,135.5,20.0]
[1720197050261,144.304967,135.72,135.5,120.0]
[1720197050462,126.085967,135.72,135.5,120.0]
[1720197050750,118.424,135.7,135.5,20.0]
[1720197051164,118.424,135.7,135.61,7.3736]
[1720197051165,7.3714,135.66,135.61,7.3736]
[1720197051351,0.17,135.65,135.61,7.3736]
[1720197051669,7.5419,135.65,135.61,7.3736]
[1720197051856,7.5419,135.65,135.5,20.0]
[1720197051857,7.3736,135.62,135.5,20.0]
[1720197052051,0.17,135.61,135.58,7.3756]
[1720197052356,0.17,135.61,135.59,7.3751]
[1720197052556,0.17,135.61,135.6,7.3746]
[1720197052758,0.17,135.61,135.5,20.0]
[1720197052955,0.17,135.61,135.59,7.3746]
[1720197053146,0.17,135.61,135.6,7.3746]
[1720197053557,0.17,135.61,135.5,20.0]
[1720197053752,0.17,135.61,135.52,7.3788]
[1720197053951,0.17,135.61,135.44,0.8810062]
[1720197054147,7.3763,135.57,135.44,0.8810062]
[1720197054356,0.17,135.56,135.44,0.8810062]
[1720197054541,7.3778,135.55,135.44,0.8810062]
[1720197054741,36.64,135.64,135.44,0.8810062]
[1720197054978,100.0,135.67,135.44,0.8810062]
[1720197055143,7.3724,135.65,135.45,100.0]
[1720197055480,20.0,135.64,135.46,36.64]
[1720197055643,7.3731,135.63,135.46,36.64]
[1720197055837,7.3739,135.62,135.46,36.64]
[1720197056159,7.3739,135.62,135.47,20.0]
[1720197056357,7.3731,135.63,135.47,20.0]
[1720197056555,7.3736,135.62,135.47,20.0]
[1720197057058,7.3756,135.59,135.44,0.8810062]
[1720197057379,7.5458,135.58,135.44,0.8810062]
[1720197057745,0.17,135.58,135.44,0.8810062]
[1720197057951,7.3773,135.56,135.44,0.8810062]
[1720197058243,0.17,135.55,135.44,0.8810062]
[1720197058661,7.3787,135.53,135.44,0.8810062]
[1720197058864,0.17,135.52,135.44,0.8810062]
[1720197059363,7.549,135.52,135.44,0.8810062]
[1720197059574,0.17,135.52,135.44,0.8810062]
[1720197059868,7.3817,135.47,135.44,0.8810062]
[1720197060072,0.17,135.46,135.44,0.8810062]
[1720197060372,0.17,135.52,135.44,0.8810062]
[1720197060585,7.3802,135.5,135.44,0.8810062]
[1720197060887,0.17,135.49,135.44,0.8810062]
[1720197061471,18.4403,135.58,135.44,0.8810062]
[1720197061646,7.3769,135.56,135.44,0.8810062]
[1720197061847,7.3777,135.55,135.44,0.8810062]
[1720197062048,4.99915359,135.59,135.44,0.8810062]
[1720197062358,2.955024,135.57,135.44,0.8810062]
[1720197062679,23.60712609,135.64,135.45,21.8094]
[1720197062851,24.9313,135.67,135.46,120.0]
[1720197063165,18.4319,135.66,135.47,0.17]
[1720197063378,30.04968923,135.67,135.47,100.17]
[1720197063556,18.4303,135.65,135.48,20.0]
[1720197063777,7.3746,135.6,135.47,0.17]
[1720197064060,11.62148923,135.67,135.47,0.17]
[1720197064061,7.3751,135.59,135.47,0.17]
[1720197064258,18.4328,135.63,135.46,20.0]
[1720197064455,7.375,135.6,135.46,20.0]
[1720197064769,7.3742,135.61,135.46,20.0]
[1720197065067,6.5031,135.67,135.47,100.81186737]
[1720197065275,26.09037893,135.69,135.49,100.0]
[1720197065455,18.4249,135.69,135.5,20.17]
[1720197065645,7.3709,135.67,135.5,20.17]
[1720197065847,7.67595032,135.71,135.53,100.0]
[1720197066141,6.6031,135.79,135.57,100.0]
[1720197066346,107.67317114,135.78,135.58,20.0]
[1720197066542,18.4197,135.73,135.58,20.0]
[1720197066770,36.8326,135.75,135.58,20.0]
[1720197066979,18.4182,135.74,135.57,20.17]
[1720197067140,7.3702,135.68,135.57,20.0]
[1720197067345,7.67317114,135.78,135.57,20.0]
[1720197067548,7.67317114,135.78,135.58,0.17]
[1720197067974,7.3672,135.74,135.59,100.0]
[1720197068175,7.3672,135.74,135.61,15.8281]
[1720197068475,7.3682,135.72,135.61,15.8281]
[1720197068646,7.3691,135.71,135.61,15.8281]
[1720197068842,100.0,135.76,135.61,15.8281]
[1720197069067,7.3704,135.68,135.61,15.8281]
[1720197069257,100.0,135.74,135.54,15.8281]
[1720197069461,7.3718,135.66,135.54,15.8281]
[1720197069676,7.373,135.63,135.54,15.8281]
[1720197069847,7.3742,135.61,135.54,15.8281]
[1720197070048,0.17,135.6,135.54,15.8281]
[1720197070296,7.3752,135.59,135.54,15.8281]
[1720197070574,0.17,135.6,135.5,6.304]
[1720197070575,0.17,135.58,135.5,6.304]
[1720197070761,0.17,135.6,135.5,6.304]
[1720197071083,20.17,135.6,135.5,6.304]
[1720197071249,7.3762,135.57,135.5,6.304]
[1720197071449,0.17,135.56,135.5,6.304]
[1720197071848,7.3777,135.55,135.47,15.2288]
[1720197072155,0.17,135.54,135.47,15.2288]
[1720197072355,0.17,135.56,135.44,7.0668062]
[1720197072565,7.3801,135.5,135.44,7.0668062]
[1720197072848,0.17,135.49,135.44,0.8810062]
[1720197073270,7.3827,135.45,135.44,0.8810062]
[1720197073469,27.5527,135.45,135.44,0.8810062]
[1720197073675,27.5527,135.45,135.43,0.37057286]
[1720197073676,25.8454,135.42,135.41,0.03897113]
[1720197073975,25.8454,135.42,135.27,22.5383]
[1720197073976,18.461,135.42,135.34,7.3886]
[1720197074175,7.3866,135.38,135.27,22.5383]
[1720197075180,18.4652,135.39,135.27,22.5383]
[1720197075677,20.0,135.38,135.27,22.5383]
[1720197075882,7.3847,135.42,135.27,22.5383]
[1720197076085,18.4569,135.46,135.27,22.5383]
[1720197076253,20.17,135.45,135.27,22.5383]
[1720197076456,20.0,135.45,135.27,22.5383]
[1720197076656,2.957464,135.49,135.31,0.27]
[1720197076864,2.957464,135.49,135.33,215.0]
[1720197077067,6.2731,135.55,135.34,0.17]
[1720197077268,42.9131,135.55,135.32,20.0]
[1720197077483,42.9131,135.55,135.33,0.17]
[1720197077691,100.0,135.53,135.32,20.0]
[1720197077858,7.3839,135.43,135.38,7.3865]
[1720197078052,7.3778,135.55,135.49,7.3804]
[1720197078286,18.438,135.59,135.37,100.0]
[1720197078466,40.67453585,135.61,135.39,100.0]
[1720197078665,7.3783,135.54,135.48,7.381]
[1720197078978,7.378,135.54,135.38,420.84]
[1720197079183,7.3779,135.54,135.39,20.0]
[1720197079358,18.4396,135.58,135.4,0.17]
[1720197079884,106.3905,135.69,135.44,6.3196]
[1720197080185,100.0,135.67,135.45,20.17]
[1720197080360,7.3756,135.59,135.45,20.0]
[1720197080555,7.3784,135.53,135.44,6.3196]
[1720197080785,7.3792,135.52,135.44,6.3196]
[1720197081394,15.0,135.62,135.44,6.3196]
[1720197081395,18.4367,135.6,135.44,6.3196]
[1720197081556,7.378,135.54,135.44,6.3196]
[1720197081751,0.17,135.53,135.44,6.3196]
[1720197082777,7.3769,135.56,135.44,6.3196]
[1720197082979,59.24,135.65,135.44,6.3196]
[1720197083187,18.4387,135.59,135.44,6.3196]
[1720197083480,7.3769,135.56,135.44,6.3196]
[1720197083660,18.4387,135.59,135.44,6.3196]
[1720197083861,20.0,135.58,135.44,6.3196]
[1720197084061,7.3785,135.53,135.44,6.3196]
[1720197084262,20.17,135.52,135.43,16.0439]
[1720197084574,7.3766,135.57,135.43,16.0439]
[1720197084781,7.3752,135.59,135.43,16.0439]
[1720197085167,7.3758,135.58,135.43,16.0439]
[1720197085366,40.78814507,135.62,135.43,16.0439]
[1720197085584,18.4403,135.58,135.43,16.0439]
[1720197085787,7.3792,135.52,135.43,16.0439]
[1720197086165,7.5496,135.51,135.43,16.0439]
[1720197086687,7.381,135.49,135.43,16.0439]
[1720197086883,0.17,135.48,135.37,390.2723]
[1720197087066,0.17,135.48,135.37,6.0723]
[1720197087271,0.17,135.48,135.47,7.3817]
[1720197087486,0.17,135.48,135.37,6.0723]
[1720197087798,0.17,135.48,135.46,7.3818]
[1720197088395,0.17,135.49,135.46,7.3818]
[1720197088564,0.17,135.49,135.37,6.0723]
[1720197088896,7.3815,135.48,135.37,6.0723]
[1720197089197,0.17,135.47,135.43,7.3834]
[1720197089363,0.17,135.47,135.45,7.3826]
[1720197089562,0.17,135.47,135.46,7.3822]
[1720197089875,0.17,135.47,135.44,7.3829]
[1720197090080,0.17,135.48,135.44,7.3829]
[1720197090587,7.5512,135.48,135.44,7.3829]
[1720197090958,7.3821,135.47,135.37,6.0723]
[1720197091260,18.4498,135.51,135.37,6.0723]
[1720197091261,0.17,135.46,135.37,6.0723]
[1720197091467,56.64,135.54,135.37,6.0723]
[1720197091468,36.64,135.54,135.37,6.0723]
[1720197091663,7.3773,135.55,135.5,6.5914669]
[1720197091870,4.11214172,135.56,135.37,6.0723]
[1720197091871,7.379,135.52,135.37,6.0723]
[1720197092089,18.4426,135.56,135.37,6.0723]
[1720197092291,18.4456,135.54,135.37,6.0723]
[1720197092583,100.0,135.56,135.37,6.0723]
[1720197092584,18.4481,135.52,135.37,6.0723]
[1720197092786,7.382,135.47,135.37,6.0723]
[1720197092995,7.3813,135.48,135.37,6.0723]
[1720197093173,0.17,135.47,135.37,6.0723]
[1720197093503,0.17,135.47,135.38,1.47661044]
[1720197093665,0.17,135.47,135.37,6.0723]
[1720197094403,7.67338261,135.58,135.38,0.17]
[1720197094580,7.378,135.54,135.38,20.17]
[1720197094765,7.3789,135.53,135.38,20.17]
[1720197094966,18.4451,135.54,135.37,6.0723]
[1720197095289,7.381,135.49,135.37,6.0723]
[1720197095660,7.3811,135.48,135.37,6.0723]
[1720197095864,0.17,135.47,135.37,6.0723]
[1720197096296,7.3826,135.46,135.37,6.0723]
[1720197096598,0.17,135.45,135.37,6.0723]
[1720197096769,7.3825,135.46,135.37,6.0723]
[1720197097089,7.5529,135.45,135.37,6.0723]
[1720197097264,0.17,135.44,135.37,6.0723]
[1720197097460,4.00643172,135.54,135.37,6.0723]
[1720197097685,136.64,135.58,135.37,6.0723]
[1720197097892,136.64,135.58,135.47,7.3813]
[1720197098192,100.0,135.56,135.45,7.3826]
[1720197098710,7.3801,135.5,135.37,6.0723]
[1720197098997,100.0,135.56,135.44,7.3832]
[1720197098998,7.3814,135.48,135.44,7.3832]
[1720197099181,0.17,135.47,135.45,7.3827]
[1720197099385,0.17,135.48,135.45,7.3827]
[1720197099574,0.17,135.48,135.44,7.3831]
[1720197099889,7.3822,135.47,135.43,7.3835]
[1720197100119,0.17,135.46,135.44,7.3833]
[1720197100288,7.3818,135.47,135.43,7.3836]
[1720197100618,0.17,135.46,135.45,7.3827]
[1720197100798,7.67398014,135.59,135.37,6.0723]
[1720197101006,22.49975986,135.59,135.37,390.2723]
[1720197101208,4.06135986,135.59,135.56,7.3767]
[1720197101520,7.3748,135.6,135.55,7.3769]
[1720197101521,7.3746,135.6,135.55,7.3769]
[1720197101704,55.0692,135.66,135.58,7.3756]
[1720197101889,36.64,135.66,135.49,17.924]
[1720197102211,7.3736,135.62,135.58,7.3756]
[1720197102416,40.82557741,135.66,135.49,17.924]
[1720197102417,7.373,135.63,135.59,7.3751]
[1720197102589,7.373,135.63,135.58,7.3755]
[1720197102911,4.18557741,135.66,135.63,7.3726]
[1720197103123,0.1,135.69,135.5,257.5]
[1720197103418,7.3703,135.68,135.63,7.3725]
[1720197103719,7.3715,135.66,135.61,7.3739]
[1720197103922,7.3709,135.67,135.61,7.3739]
[1720197104220,0.1,135.69,135.51,0.17]
[1720197104387,0.1,135.69,135.51,604.37]
[1720197104582,0.1,135.69,135.51,504.37]
[1720197104583,7.371,135.67,135.51,504.37]
[1720197104809,0.1,135.69,135.51,404.37]
[1720197105121,0.1,135.69,135.51,419.37]
[1720197105302,0.1,135.69,135.52,100.0]
[1720197105620,0.1,135.69,135.53,20.17]
[1720197106001,0.1,135.69,135.55,100.0]
[1720197106189,0.1,135.69,135.57,15.1463]
[1720197106515,0.1,135.69,135.58,0.17]
[1720197106716,0.1,135.69,135.58,20.17]
[1720197107606,0.1,135.69,135.58,20.0]
[1720197108793,0.1,135.69,135.58,504.2]
[1720197109019,0.8810062,135.77,135.61,100.0]
[1720197109322,0.8810062,135.77,135.68,15.8528]
[1720197109500,0.8810062,135.77,135.69,0.17]
[1720197110192,0.8810062,135.77,135.69,20.17]
[1720197110515,0.1,135.89,135.75,100.0]
[1720197110716,0.1,135.89,135.76,20.17]
[1720197110917,0.1,135.89,135.76,20.0]
[1720197111102,7.3596,135.88,135.73,6.6203]
[1720197111294,0.1,135.89,135.74,20.17]
[1720197111628,0.1,135.89,135.75,15.0]
[1720197111921,0.1,135.89,135.76,20.17]
[1720197112132,0.1,135.89,135.76,0.17]
[1720197112307,0.1,135.89,135.77,20.0]
[1720197112495,0.1,135.89,135.78,0.17]
[1720197112695,0.1,135.89,135.75,0.17]
[1720197114704,0.1,135.89,135.75,100.17]
[1720197114900,0.1,135.89,135.77,100.0]
[1720197115111,0.1,135.89,135.78,71.81]
[1720197115617,0.1,135.89,135.78,181.78930915]
[1720197115823,0.1,135.89,135.79,15.5186]
[1720197115997,0.1,135.89,135.8,20.17]
[1720197116808,0.1,135.89,135.8,20.0]
[1720197117197,7.3605,135.86,135.79,15.5186]
[1720197117525,7.3605,135.86,135.74,484.2]
[1720197117526,0.17,135.87,135.74,484.2]
[1720197117697,7.459,135.89,135.74,484.2]
[1720197117896,0.1,135.89,135.74,584.2]
[1720197118105,0.1,135.89,135.74,484.2]
[1720197118702,7.4589,135.89,135.74,384.2]
[1720197118924,0.17,135.88,135.74,384.2]
[1720197119123,7.362,135.84,135.74,384.2]
[1720197119422,0.1,135.89,135.74,384.2]
[1720197119423,0.17,135.83,135.74,384.2]
[1720197119719,0.17,135.83,135.73,6.6203]
[1720197119894,0.17,135.84,135.73,6.6203]
[1720197120530,0.17,135.85,135.73,6.6203]
[1720197120820,0.17,135.85,135.72,15.0701]
[1720197120821,7.3622,135.83,135.72,15.0701]
[1720197121022,7.5315,135.85,135.69,384.2]
[1720197121628,7.5315,135.85,135.68,384.2]
[1720197121629,7.363,135.82,135.68,384.2]
[1720197121911,0.17,135.81,135.68,384.2]
[1720197122116,0.17,135.81,135.67,6.5952]
[1720197122313,7.3655,135.77,135.67,6.5952]
[1720197122528,0.17,135.76,135.62,257.5]
[1720197122700,0.17,135.76,135.61,390.3925]
[1720197122701,7.3669,135.75,135.61,390.3925]
[1720197122898,20.0,135.8,135.61,390.3925]
[1720197122899,0.17,135.74,135.61,6.1925]
[1720197123105,7.3682,135.72,135.61,6.1925]
[1720197123429,7.5388,135.71,135.6,15.975]
[1720197123599,7.3692,135.7,135.58,257.5]
[1720197123800,0.17,135.69,135.57,384.2]
[1720197124615,0.17,135.7,135.57,384.2]
[1720197124812,7.3697,135.69,135.57,384.2]
[1720197125125,0.17,135.68,135.57,384.2]
[1720197125831,7.3708,135.67,135.57,384.2]
[1720197126012,0.17,135.66,135.57,384.2]
[1720197126209,7.3709,135.67,135.57,384.2]
[1720197126413,7.5414,135.66,135.57,384.2]
[1720197126632,7.3722,135.65,135.55,7.66907534]
[1720197126926,0.17,135.64,135.53,257.5]
[1720197127129,0.17,135.64,135.54,100.0]
[1720197127309,7.3707,135.68,135.54,100.0]
[1720197127741,7.3682,135.72,135.54,100.0]
[1720197128033,42.8245,135.74,135.58,100.0]
[1720197128034,6.1845,135.74,135.58,100.0]
[1720197128415,13.5515,135.74,135.59,20.17]
[1720197128612,6.1845,135.74,135.59,20.17]
[1720197128831,7.3682,135.72,135.6,1.47394543]
[1720197129004,6.1845,135.74,135.59,0.17]
[1720197129210,6.2553,135.8,135.6,216.2952]
[1720197129413,6.2553,135.8,135.63,100.0]
[1720197129711,6.2553,135.8,135.65,100.0]
[1720197129903,6.2553,135.8,135.66,20.17]
[1720197130108,13.6195,135.8,135.66,20.17]
[1720197130304,4.09343211,135.85,135.67,100.0]
[1720197130506,7.3623,135.83,135.68,20.17]
[1720197130728,24.5547,135.87,135.68,20.17]
[1720197130729,7.3616,135.84,135.68,20.17]
[1720197130928,24.5547,135.87,135.68,20.17]
[1720197131123,18.4031,135.85,135.68,20.0]
[1720197131502,7.3617,135.84,135.69,0.17]
[1720197131716,6.1544,135.87,135.69,100.17]
[1720197131917,6.1544,135.87,135.7,20.0]
[1720197132408,7.3616,135.84,135.7,20.0]
[1720197133239,7.3627,135.82,135.7,20.0]
[1720197133410,18.4037,135.85,135.68,100.0]
[1720197133612,7.3639,135.8,135.63,209.29126609]
[1720197133811,7.3633,135.81,135.65,100.0]
[1720197134123,18.4057,135.83,135.65,100.0]
[1720197134315,18.4086,135.81,135.65,100.0]
[1720197134637,20.17,135.8,135.61,106.4348]
[1720197134808,18.4113,135.79,135.61,106.4348]
[1720197135010,7.3668,135.75,135.61,106.4348]
[1720197135312,7.368,135.73,135.61,6.4348]
[1720197135714,0.17,135.72,135.61,6.4348]
[1720197136105,0.17,135.72,135.6,16.2952]
[1720197136327,0.17,135.72,135.57,384.2]
[1720197136719,36.64,135.79,135.59,100.0]
[1720197136720,0.17,135.73,135.59,100.0]
[1720197136931,0.17,135.73,135.57,433.04435683]
[1720197137134,0.17,135.73,135.61,100.0]
[1720197137342,22.56408486,135.8,135.62,20.17]
[1720197137343,7.3641,135.8,135.62,20.17]
[1720197137521,55.0461,135.83,135.62,504.37]
[1720197137522,7.3646,135.79,135.62,504.37]
[1720197137728,79.5949,135.87,135.64,100.0]
[1720197137944,7.3631,135.82,135.65,20.17]
[1720197138163,7.3633,135.81,135.65,20.17]
[1720197138321,187.26448893,135.87,135.65,20.17]
[1720197138524,7.3649,135.78,135.65,20.17]
[1720197138946,36.8105,135.84,135.65,20.0]
[1720197139225,18.4049,135.84,135.65,20.0]
[1720197139426,0.17,135.83,135.65,120.0]
[1720197139634,7.3643,135.79,135.65,20.0]
[1720197139840,0.17,135.78,135.65,20.0]
[1720197140242,0.17,135.78,135.66,0.17]
[1720197140550,47.07166266,135.87,135.66,100.17]
[1720197140855,7.3623,135.83,135.67,20.0]
[1720197141158,7.3617,135.84,135.68,0.17]
[1720197141366,7.3633,135.81,135.68,0.17]
[1720197141858,7.3627,135.82,135.69,6.0372]
[1720197142024,7.3648,135.79,135.7,20.0]
[1720197142222,154.74151172,135.87,135.67,20.0]
[1720197142223,7.3615,135.85,135.68,100.0]
[1720197142528,7.3614,135.85,135.71,100.0]
[1720197142733,10.43166266,135.87,135.72,20.17]
[1720197142734,6.1544,135.87,135.72,20.17]
[1720197143344,19.80573501,135.89,135.72,20.17]
[1720197143518,7.459,135.89,135.72,20.17]
[1720197143719,7.459,135.89,135.73,100.0]
[1720197143934,7.459,135.89,135.77,100.0]
[1720197143935,0.1,135.89,135.77,100.0]
[1720197144253,0.1,135.89,135.78,20.17]
[1720197144744,0.1,135.89,135.78,404.37]
[1720197145518,0.1,135.89,135.81,100.0]
[1720197145820,0.1,135.89,135.78,420.8665]
[1720197145821,0.1,135.89,135.82,20.0]
[1720197146036,7.3601,135.87,135.78,400.6965]
[1720197146226,7.3594,135.88,135.78,400.6965]
[1720197146447,0.1,135.89,135.79,20.0]
[1720197147334,0.1,135.89,135.76,6.6631]
[1720197147640,7.36,135.87,135.72,641.7]
[1720197147847,18.3995,135.88,135.72,641.7]
[1720197148027,0.17,135.87,135.72,641.7]
[1720197148348,7.3612,135.85,135.72,641.7]
[1720197148549,7.5317,135.84,135.72,641.7]
[1720197148758,20.17,135.87,135.72,641.7]
[1720197148932,7.3631,135.82,135.72,384.2]
[1720197149255,0.17,135.81,135.72,384.2]